{"text_format":"1","workbook":"xlsx","n_sheets":3,"sheets":["NettenBrüte","BrüttenNete","Parametre"],"not_rendered":{"charts":0,"images":1,"macros":1,"external_links":0,"defined_names":2,"comments":3,"pivot_tables":0},"unopened":[],"bounds":{"document_bytes":16777216,"sheet_cells":100000,"rows_first":2000,"rows_last":500,"rows_between":2000,"halvings":0,"cell_chars":16384,"cell_head_chars":4096},"cells_cut":0,"cells_raw":0,"read":"whole","date_system":"1900"}

{"sheet":"NettenBrüte","index":0,"n_rows":53,"n_cols":18,"rows_kept":53,"cut":false,"hidden":false,"merged":[[4,4,4,6],[6,4,6,6],[10,4,10,6],[11,4,11,6],[8,4,8,6],[9,4,9,6]]}
[]
[null,null,"Netten Brüte ücret hesaplaması",null,20]
[null,null,"7349 Sayılı Kanunla ve 319 Seri Nolu GVK Tebliğ ile Uyumlu",null,25]
[null,null,"Veriler",null,"Lütfen seçiminlerinizi yapınız"]
[null,null,"Çalışan / Ücret türünü seçiniz",null,"İmalat Sektörü Harici NORMAL Çalışan"]
[null,null,null,null,1]
[null,null,"Çalışan zorunlu BES kapsamında mı?",null,"Hayır"]
[null,null,null,null,1]
[null,null,"Cari aya devreden kümülatif  Asgari Ücret Gelir Vergisi matrahı",null,0]
[null,null,"Cari aya devreden kümülatif  Gelir Vergisi matrahı",null,0]
[null,null,"Hesaplama yaptırılacak BAŞLANGIÇ AYINI seçiniz",null,"Ocak"]
[null,null,"Beş (4/5) Puanlık SGP İşveren İndiriminden Yararlanıyor musunuz?",null,"Evet, yararlanıyoruz"]
[]
[null,null,"Aylar",null,"Ocak","Şubat","Mart","Nisan","Mayıs","Haziran","Temmuz","Ağustos","Eylül","Ekim","Kasım","Aralık","TOPLAM","Aylık Ortalama"]
[null,null,"Çalışanın (tam) Aylık BRÜT ÜCRETİNİ yazınız",null,0,0,0,0,0,0,0,0,0,0,0,0,null,{"$f":"AVERAGE(E15:P15)","v":0}]
[null,null,"Ay içinde çalıştığı gün sayısını belirleyiniz (tam ay çalışıldı ise yandaki günler geçerlidir)",null,31,28,31,30,31,30,31,31,30,31,30,31,365,{"$f":"AVERAGE(E16:P16)","v":30.416666666666668}]
[null,null,"Çalıştığı günlere isabet eden NET ÜCRETİ",null,null,null,null,null,null,null,null,null,null,null,null,null,null,{"$f":"AVERAGE(E17:P17)","v":{"$error":"#DIV/0!"}}]
[null,null,null,null,null,null,null,null,null,null,null,null,null,null,null,null,null,{"$f":"IFERROR(AVERAGE(E18:P18),\"\")","v":""}]
[null,null,"Zorunlu Bireysel Emeklilik Primi (BES) (-)",null,null,null,null,null,null,null,null,null,null,null,null,null,null,{"$f":"AVERAGE(E19:P19)","v":{"$error":"#DIV/0!"}}]
[null,null,"Sosyal güvenlik primi İŞÇİ payı (-)",null,null,null,null,null,null,null,null,null,null,null,null,null,null,{"$f":"AVERAGE(E20:P20)","v":{"$error":"#DIV/0!"}}]
[null,null,"İşsizlik sigortası İŞÇİ payı (-)",null,null,null,null,null,null,null,null,null,null,null,null,null,null,{"$f":"AVERAGE(E21:P21)","v":{"$error":"#DIV/0!"}}]
[null,null,"Damga vergisi (-)",null,null,null,null,null,null,null,null,null,null,null,null,null,null,{"$f":"AVERAGE(E22:P22)","v":{"$error":"#DIV/0!"}}]
[null,null,"Gelir vergisi (-)",null,null,null,null,null,null,null,null,null,null,null,null,null,null,{"$f":"AVERAGE(E23:P23)","v":{"$error":"#DIV/0!"}}]
[null,null,"Çalışanının BRÜT ÜCRETİ",null,null,null,null,null,null,null,null,null,null,null,null,null,null,{"$f":"AVERAGE(E24:P24)","v":{"$error":"#DIV/0!"}}]
[null,null,"İşsizlik sigortası İŞVEREN payı",null,null,null,null,null,null,null,null,null,null,null,null,null,null,{"$f":"AVERAGE(E25:P25)","v":{"$error":"#DIV/0!"}}]
[null,null,"Sosyal güvenlik primi İŞVEREN payı",null,null,null,null,null,null,null,null,null,null,null,null,null,null,{"$f":"AVERAGE(E26:P26)","v":{"$error":"#DIV/0!"}}]
[null,null,"Çalışanının İŞVERENE TOPLAM MALİYETİ",null,null,null,null,null,null,null,null,null,null,null,null,null,null,{"$f":"AVERAGE(E27:P27)","v":{"$error":"#DIV/0!"}}]
[null,null,null,null,null,null,null,null,null,null,null,null,null,null,null,null,null,""]
[null,null,"ÖDENECEK NET ÜCRET",null,null,null,null,null,null,null,null,null,null,null,null,null,null,{"$f":"AVERAGE(E29:P29)","v":{"$error":"#DIV/0!"}}]
[]
[null,null,"Hesaplama detay bilgileri"]
[null,null,"Bu ayın SGP matrahı"]
[null,null,"5 Puanlık SG Primi indirim tutarı"]
[null,null,"Cari aya devreden kümülatif  Gelir Vergisi matrahı"]
[null,null,"Cari ayın Gelir Vergisi matrahı"]
[null,null,"Birikmiş Gelir Vergisi Matrahı"]
[]
[]
[]
[]
[null,null,"Cari aya Devreden Asgari Ücretin Gelir Vergisi Matrahı"]
[null,null,"Cari ayın Asgari Ücretin Gelir Vergisi Matrahı"]
[null,null,"Birikimli Asgari Ücretin Gelir Vergisi Matrahı"]
[]
[null,null,"Cari Ayın Hesaplanan Gelir Vergisi"]
[null,null,"Sakatlık indirimi gelir vergisi farkı"]
[null,null,"Sadece Asgari Ücretin Gelir Vergisi"]
[null,null,"İstisnadan Sonra Kalan (Devlete Ödenecek) Gelir Vergisi"]
[]
[null,null,"Damga Vergisinden İstisna Asgari Ücret Tutarı"]
[null,null,"Hesaplanan Normal Damga Vergisi"]
[null,null,"İstisna Damga Vergisi (Asgari Ücret Üzerinden)"]
[null,null,"İstisnadan Sonra Kalan (Devlete Ödenecek) Damga Vergisi"]

{"sheet":"BrüttenNete","index":1,"n_rows":53,"n_cols":18,"rows_kept":53,"cut":false,"hidden":false,"merged":[[4,4,4,6],[6,4,6,6],[8,4,8,6],[9,4,9,6],[10,4,10,6],[11,4,11,6]]}
[]
[null,null,"Brütten Nete ücret hesaplaması",null,20]
[null,null,"7349 Sayılı Kanunla ve 319 Seri Nolu GVK Tebliğ ile Uyumlu",null,25]
[null,null,"Veriler",null,"Lütfen seçiminlerinizi yapınız"]
[null,null,"Çalışan / Ücret türünü seçiniz",null,"İmalat Sektörü Harici NORMAL Çalışan"]
[null,null,null,null,1]
[null,null,"Çalışan zorunlu BES kapsamında mı?",null,"Hayır"]
[null,null,null,null,1]
[null,null,"Cari aya devreden kümülatif  Asgari Ücret Gelir Vergisi matrahı",null,0]
[null,null,"Cari aya devreden kümülatif  Gelir Vergisi matrahı",null,0]
[null,null,"Hesaplama yaptırılacak BAŞLANGIÇ AYINI seçiniz",null,"Ocak"]
[null,null,"Beş (4/5) Puanlık SGP İşveren İndiriminden Yararlanıyor musunuz?",null,"Evet, yararlanıyoruz"]
[]
[null,null,"Aylar",null,"Ocak","Şubat","Mart","Nisan","Mayıs","Haziran","Temmuz","Ağustos","Eylül","Ekim","Kasım","Aralık","TOPLAM","Aylık Ortalama"]
[null,null,"Çalışanın (tam) Aylık BRÜT ÜCRETİNİ yazınız",null,0,0,0,0,0,0,0,0,0,0,0,0,null,{"$f":"AVERAGE(E15:P15)","v":0}]
[null,null,"Ay içinde çalıştığı gün sayısını belirleyiniz (tam ay çalışıldı ise yandaki günler geçerlidir)",null,31,28,31,30,31,30,31,31,30,31,30,31,365,{"$f":"AVERAGE(E16:P16)","v":30.416666666666668}]
[null,null,"Çalıştığı günlere isabet eden BRÜT ÜCRETİ",null,null,null,null,null,null,null,null,null,null,null,null,null,null,{"$f":"AVERAGE(E17:P17)","v":{"$error":"#DIV/0!"}}]
[null,null,null,null,null,null,null,null,null,null,null,null,null,null,null,null,null,{"$f":"IFERROR(AVERAGE(E18:P18),\"\")","v":""}]
[null,null,"Zorunlu Bireysel Emeklilik Primi (BES) (-)",null,null,null,null,null,null,null,null,null,null,null,null,null,null,{"$f":"AVERAGE(E19:P19)","v":{"$error":"#DIV/0!"}}]
[null,null,"Sosyal güvenlik primi İŞÇİ payı (-)",null,null,null,null,null,null,null,null,null,null,null,null,null,null,{"$f":"AVERAGE(E20:P20)","v":{"$error":"#DIV/0!"}}]
[null,null,"İşsizlik sigortası İŞÇİ payı (-)",null,null,null,null,null,null,null,null,null,null,null,null,null,null,{"$f":"AVERAGE(E21:P21)","v":{"$error":"#DIV/0!"}}]
[null,null,"Damga vergisi (-)",null,null,null,null,null,null,null,null,null,null,null,null,null,null,{"$f":"AVERAGE(E22:P22)","v":{"$error":"#DIV/0!"}}]
[null,null,"Gelir vergisi (-)",null,null,null,null,null,null,null,null,null,null,null,null,null,null,{"$f":"AVERAGE(E23:P23)","v":{"$error":"#DIV/0!"}}]
[null,null,"Çalışanının NET ÜCRETİ",null,0,0,0,0,0,0,0,0,0,0,0,0,null,{"$f":"AVERAGE(E24:P24)","v":0}]
[null,null,"İşsizlik sigortası İŞVEREN payı",null,null,null,null,null,null,null,null,null,null,null,null,null,null,{"$f":"AVERAGE(E25:P25)","v":{"$error":"#DIV/0!"}}]
[null,null,"Sosyal güvenlik primi İŞVEREN payı",null,null,null,null,null,null,null,null,null,null,null,null,null,null,{"$f":"AVERAGE(E26:P26)","v":{"$error":"#DIV/0!"}}]
[null,null,"Çalışanının İŞVERENE TOPLAM MALİYETİ",null,null,null,null,null,null,null,null,null,null,null,null,null,null,{"$f":"AVERAGE(E27:P27)","v":{"$error":"#DIV/0!"}}]
[null,null,null,null,null,null,null,null,null,null,null,null,null,null,null,null,null,""]
[null,null,"ÖDENECEK NET ÜCRET",null,null,null,null,null,null,null,null,null,null,null,null,null,null,{"$f":"AVERAGE(E29:P29)","v":{"$error":"#DIV/0!"}}]
[]
[null,null,"Hesaplama detay bilgileri"]
[null,null,"Bu ayın SGP matrahı"]
[null,null,"5 Puanlık SG Primi indirim tutarı"]
[null,null,"Cari aya devreden kümülatif  Gelir Vergisi matrahı"]
[null,null,"Cari ayın Gelir Vergisi matrahı"]
[null,null,"Birikmiş Gelir Vergisi Matrahı"]
[]
[]
[]
[]
[null,null,"Cari aya Devreden Asgari Ücretin Gelir Vergisi Matrahı"]
[null,null,"Cari ayın Asgari Ücretin Gelir Vergisi Matrahı"]
[null,null,"Birikimli Asgari Ücretin Gelir Vergisi Matrahı"]
[]
[null,null,"Cari Ayın Hesaplanan Gelir Vergisi"]
[null,null,"Sakatlık indirimi gelir vergisi farkı"]
[null,null,"Sadece Asgari Ücretin Gelir Vergisi"]
[null,null,"İstisnadan Sonra Kalan (Devlete Ödenecek) Gelir Vergisi"]
[]
[null,null,"Damga Vergisinden İstisna Asgari Ücret Tutarı"]
[null,null,"Hesaplanan Normal Damga Vergisi"]
[null,null,"İstisna Damga Vergisi (Asgari Ücret Üzerinden)"]
[null,null,"İstisnadan Sonra Kalan (Devlete Ödenecek) Damga Vergisi"]

{"sheet":"Parametre","index":2,"n_rows":81,"n_cols":487,"rows_kept":81,"cut":false,"hidden":true,"merged":[[37,3,38,3]]}
[null,null,"Netten Brüte - Brütten Nete Ücret Hesaplaması",null,null,null,null,null,null,null,null,null,null,null,null,null,null,null,null,null,null,null,null,null,null,null,null,null,null,null,null,null,null,null,null,null,null,null,null,null,null,null,null,null,null,null,null,null,null,null,null,null,null,null,null,null,null,null,null,null,null,null,null,null,null,null,null,null,null,null,null,null,null,null,null,null,null,null,null,null,null,null,null,null,null,null,null,null,null,null,null,null,null,null,null,null,null,null,null,null,null,null,null,null,null,null,null,null,null,null,null,null,null,null,null,null,null,null,null,null,null,null,null,null,null,null,null,null,null,null,null,null,null,null,null,null,null,null,null,null,null,null,null,null,null,null,null,null,null,null,null,null,null,null,null,null,null,null,null,null,null,null,null,null,null,null,null,null,null,null,null,null,null,null,null,null,null,null,null,null,null,null,null,null,null,null,null,null,null,null,null,null,null,null,null,null,null,null,null,null,null,null,null,null,null,null,null,null,null,null,null,null,null,null,null,null,null,null,null,null,null,null,null,null,null,null,null,null,null,null,null,null,null,null,null,null,null,null,null,null,null,null,null,null,null,null,null,null,null,null,null,null,null,null,null,null,null,null,null,null,null,null,null,null,null,null,null,null,null,null,null,null,null,null,null,null,null,null,null,null,null,null,null,null,null,null,null,null,null,null,null,null,null,null,null,null,null,null,null,null,null,null,null,null,null,null,null,null,null,null,null,null,null,null,null,null,null,null,null,null,null,null,null,null,null,null,null,null,null,null,null,null,null,null,null,null,null,null,null,null,null,null,null,null,null,null,null,null,null,null,null,null,null,null,null,null,null,null,null,null,null,null,null,null,null,null,null,null,null,null,null,null,null,null,null,null,null,null,null,null,null,null,null,null,null,null,null,null,null,null,null,null,null,null,null,null,null,null,null,null,null,null,null,null,null,null,null,null,null,null,null,null,null,null,null,null,null,null,null,null,null,null,null,null,null,null,null,null,null,null,null,null,null,null,null,null,null,null,null,null,null,null,null,null,null,null,null,null,null,null,null,null,null,null,null,null,null,null,null,null,null,null,null,null,null,null,null,null,null,null,null,null,null,null,null,null,null,null,null,null,null,null,null,null,null,null,"Netten Brüte"]
[null,null,null,null,null,null,null,null,null,null,null,null,null,null,null,null,null,null,null,null,null,null,null,null,null,null,null,null,null,null,null,null,null,null,null,null,null,null,null,null,null,null,null,null,null,null,null,null,null,null,null,null,null,null,null,null,null,null,null,null,null,null,null,null,null,null,null,null,null,null,null,null,null,null,null,null,null,null,null,null,null,null,null,null,null,null,null,null,null,null,null,null,null,null,null,null,null,null,null,null,null,null,null,null,null,null,null,null,null,null,null,null,null,null,null,null,null,null,null,null,null,null,null,null,null,null,null,null,null,null,null,null,null,null,null,null,null,null,null,null,null,null,null,null,null,null,null,null,null,null,null,null,null,null,null,null,null,null,null,null,null,null,null,null,null,null,null,null,null,null,null,null,null,null,null,null,null,null,null,null,null,null,null,null,null,null,null,null,null,null,null,null,null,null,null,null,null,null,null,null,null,null,null,null,null,null,null,null,null,null,null,null,null,null,null,null,null,null,null,null,null,null,null,null,null,null,null,null,null,null,null,null,null,null,null,null,null,null,null,null,null,null,null,null,null,null,null,null,null,null,null,null,null,null,null,null,null,null,null,null,null,null,null,null,null,null,null,null,null,null,null,null,null,null,null,null,null,null,null,null,null,null,null,null,null,null,null,null,null,null,null,null,null,null,null,null,null,null,null,null,null,null,null,null,null,null,null,null,null,null,null,null,null,null,null,null,null,null,null,null,null,null,null,null,null,null,null,null,null,null,null,null,null,null,null,null,null,null,null,null,null,null,null,null,null,null,null,null,null,null,null,null,null,null,null,null,null,null,null,null,null,null,null,null,null,null,null,null,null,null,null,null,null,null,null,null,null,null,null,null,null,null,null,null,null,null,null,null,null,null,null,null,null,null,null,null,null,null,null,null,null,null,null,null,null,null,null,null,null,null,null,null,null,null,null,null,null,null,null,null,null,null,null,null,null,null,null,null,null,null,null,null,null,null,null,null,null,null,null,null,null,null,null,null,null,null,null,null,null,null,null,null,null,null,null,null,null,null,null,null,null,null,null,null,null,null,null,null,null,null,null,null,null,null,null,null,null,null,null,null,null,null,null,null,null,null,"Netten Brüte Ücret"]
[null,null,"HESAPLAMA PARAMETRELERİ ",null,"2025 yılı",null,null,null,null,null,null,null,null,null,null,null,null,null,null,null,null,null,null,null,null,null,null,null,null,null,null,null,null,null,null,null,null,null,null,null,null,null,null,null,null,null,null,null,null,null,null,null,null,null,null,null,null,null,null,null,null,null,null,null,null,null,null,null,null,null,null,null,null,null,null,null,null,null,null,null,null,null,null,null,null,null,null,null,null,null,null,null,null,null,null,null,null,null,null,null,null,null,null,null,null,null,null,null,null,null,null,null,null,null,null,null,null,null,null,null,null,null,null,null,null,null,null,null,null,null,null,null,null,null,null,null,null,null,null,null,null,null,null,null,null,null,null,null,null,null,null,null,null,null,null,null,null,null,null,null,null,null,null,null,null,null,null,null,null,null,null,null,null,null,null,null,null,null,null,null,null,null,null,null,null,null,null,null,null,null,null,null,null,null,null,null,null,null,null,null,null,null,null,null,null,null,null,null,null,null,null,null,null,null,null,null,null,null,null,null,null,null,null,null,null,null,null,null,null,null,null,null,null,null,null,null,null,null,null,null,null,null,null,null,null,null,null,null,null,null,null,null,null,null,null,null,null,null,null,null,null,null,null,null,null,null,null,null,null,null,null,null,null,null,null,null,null,null,null,null,null,null,null,null,null,null,null,null,null,null,null,null,null,null,null,null,null,null,null,null,null,null,null,null,null,null,null,null,null,null,null,null,null,null,null,null,null,null,null,null,null,null,null,null,null,null,null,null,null,null,null,null,null,null,null,null,null,null,null,null,null,null,null,null,null,null,null,null,null,null,null,null,null,null,null,null,null,null,null,null,null,null,null,null,null,null,null,null,null,null,null,null,null,null,null,null,null,null,null,null,null,null,null,null,null,null,null,null,null,null,null,null,null,null,null,null,null,null,null,null,null,null,null,null,null,null,null,null,null,null,null,null,null,null,null,null,null,null,null,null,null,null,null,null,null,null,null,null,null,null,null,null,null,null,null,null,null,null,null,null,null,null,null,null,null,null,null,null,null,null,null,null,null,null,null,null,null,null,null,null,null,null,null,null,null,null,null,null,null,null,null,null,null,null,null,null,null,null,null,null,null,null,null,null,null,null,"Netten Brüte Ücret Hesaplaması"]
[null,null,null,null,null,null,null,null,null,"DEĞİŞTİRİLEMEZ BİLGİLER",null,null,null,null,null,null,null,null,null,null,null,null,null,null,null,null,null,null,null,null,null,null,null,null,null,null,null,null,null,null,null,null,null,null,null,null,null,null,null,null,null,null,null,null,null,null,null,null,null,null,null,null,null,null,null,null,null,null,null,null,null,null,null,null,null,null,null,null,null,null,null,null,null,null,null,null,null,null,null,null,null,null,null,null,null,null,null,null,null,null,null,null,null,null,null,null,null,null,null,null,null,null,null,null,null,null,null,null,null,null,null,null,null,null,null,null,null,null,null,null,null,null,null,null,null,null,null,null,null,null,null,null,null,null,null,null,null,null,null,null,null,null,null,null,null,null,null,null,null,null,null,null,null,null,null,null,null,null,null,null,null,null,null,null,null,null,null,null,null,null,null,null,null,null,null,null,null,null,null,null,null,null,null,null,null,null,null,null,null,null,null,null,null,null,null,null,null,null,null,null,null,null,null,null,null,null,null,null,null,null,null,null,null,null,null,null,null,null,null,null,null,null,null,null,null,null,null,null,null,null,null,null,null,null,null,null,null,null,null,null,null,null,null,null,null,null,null,null,null,null,null,null,null,null,null,null,null,null,null,null,null,null,null,null,null,null,null,null,null,null,null,null,null,null,null,null,null,null,null,null,null,null,null,null,null,null,null,null,null,null,null,null,null,null,null,null,null,null,null,null,null,null,null,null,null,null,null,null,null,null,null,null,null,null,null,null,null,null,null,null,null,null,null,null,null,null,null,null,null,null,null,null,null,null,null,null,null,null,null,null,null,null,null,null,null,null,null,null,null,null,null,null,null,null,null,null,null,null,null,null,null,null,null,null,null,null,null,null,null,null,null,null,null,null,null,null,null,null,null,null,null,null,null,null,null,null,null,null,null,null,null,null,null,null,null,null,null,null,null,null,null,null,null,null,null,null,null,null,null,null,null,null,null,null,null,null,null,null,null,null,null,null,null,null,null,null,null,null,null,null,null,null,null,null,null,null,null,null,null,null,null,null,null,null,null,null,null,null,null,null,null,null,null,null,null,null,null,null,null,null,null,null,null,null,null,null,null,null,null,null,null,null,null,null,null,null,"Netten Brüte Maaş"]
[null,null,"Cari Yıl Gelir Vergisi Tarifesi",null,null,null,null,null,null,"Çalışan Tipi",null,null,null,"İtibari hizmet süreleri",null,null,"Aylar","5 Puanlık SGP İndiriminden Yararlanma Durumu",null,null,"Evet",null,null,null,null,null,null,null,null,null,null,null,null,null,null,null,null,null,null,null,null,null,null,null,null,null,null,null,null,null,null,null,null,null,null,null,null,null,null,null,null,null,null,null,null,null,null,null,null,null,null,null,null,null,null,null,null,null,null,null,null,null,null,null,null,null,null,null,null,null,null,null,null,null,null,null,null,null,null,null,null,null,null,null,null,null,null,null,null,null,null,null,null,null,null,null,null,null,null,null,null,null,null,null,null,null,null,null,null,null,null,null,null,null,null,null,null,null,null,null,null,null,null,null,null,null,null,null,null,null,null,null,null,null,null,null,null,null,null,null,null,null,null,null,null,null,null,null,null,null,null,null,null,null,null,null,null,null,null,null,null,null,null,null,null,null,null,null,null,null,null,null,null,null,null,null,null,null,null,null,null,null,null,null,null,null,null,null,null,null,null,null,null,null,null,null,null,null,null,null,null,null,null,null,null,null,null,null,null,null,null,null,null,null,null,null,null,null,null,null,null,null,null,null,null,null,null,null,null,null,null,null,null,null,null,null,null,null,null,null,null,null,null,null,null,null,null,null,null,null,null,null,null,null,null,null,null,null,null,null,null,null,null,null,null,null,null,null,null,null,null,null,null,null,null,null,null,null,null,null,null,null,null,null,null,null,null,null,null,null,null,null,null,null,null,null,null,null,null,null,null,null,null,null,null,null,null,null,null,null,null,null,null,null,null,null,null,null,null,null,null,null,null,null,null,null,null,null,null,null,null,null,null,null,null,null,null,null,null,null,null,null,null,null,null,null,null,null,null,null,null,null,null,null,null,null,null,null,null,null,null,null,null,null,null,null,null,null,null,null,null,null,null,null,null,null,null,null,null,null,null,null,null,null,null,null,null,null,null,null,null,null,null,null,null,null,null,null,null,null,null,null,null,null,null,null,null,null,null,null,null,null,null,null,null,null,null,null,null,null,null,null,null,null,null,null,null,null,null,null,null,null,null,null,null,null,null,null,null,null,null,null,null,null,null,null,null,null,null,null,null,null,null,null,null,null,null,null,null,null,null,null,null,null,null,null,"Netten Brüte Maaş Hesaplaması"]
[null,null,"DİLİMLER","Dilim Tutar","Dilim Oran",null,null,null,null,"İmalat Sektörü Harici NORMAL Çalışan",null,null,null,"Yok",null,null,"Ocak","Evet, yararlanıyoruz",null,null,"Hayır",null,null,null,null,null,null,null,null,null,null,null,null,null,null,null,null,null,null,null,null,null,null,null,null,null,null,null,null,null,null,null,null,null,null,null,null,null,null,null,null,null,null,null,null,null,null,null,null,null,null,null,null,null,null,null,null,null,null,null,null,null,null,null,null,null,null,null,null,null,null,null,null,null,null,null,null,null,null,null,null,null,null,null,null,null,null,null,null,null,null,null,null,null,null,null,null,null,null,null,null,null,null,null,null,null,null,null,null,null,null,null,null,null,null,null,null,null,null,null,null,null,null,null,null,null,null,null,null,null,null,null,null,null,null,null,null,null,null,null,null,null,null,null,null,null,null,null,null,null,null,null,null,null,null,null,null,null,null,null,null,null,null,null,null,null,null,null,null,null,null,null,null,null,null,null,null,null,null,null,null,null,null,null,null,null,null,null,null,null,null,null,null,null,null,null,null,null,null,null,null,null,null,null,null,null,null,null,null,null,null,null,null,null,null,null,null,null,null,null,null,null,null,null,null,null,null,null,null,null,null,null,null,null,null,null,null,null,null,null,null,null,null,null,null,null,null,null,null,null,null,null,null,null,null,null,null,null,null,null,null,null,null,null,null,null,null,null,null,null,null,null,null,null,null,null,null,null,null,null,null,null,null,null,null,null,null,null,null,null,null,null,null,null,null,null,null,null,null,null,null,null,null,null,null,null,null,null,null,null,null,null,null,null,null,null,null,null,null,null,null,null,null,null,null,null,null,null,null,null,null,null,null,null,null,null,null,null,null,null,null,null,null,null,null,null,null,null,null,null,null,null,null,null,null,null,null,null,null,null,null,null,null,null,null,null,null,null,null,null,null,null,null,null,null,null,null,null,null,null,null,null,null,null,null,null,null,null,null,null,null,null,null,null,null,null,null,null,null,null,null,null,null,null,null,null,null,null,null,null,null,null,null,null,null,null,null,null,null,null,null,null,null,null,null,null,null,null,null,null,null,null,null,null,null,null,null,null,null,null,null,null,null,null,null,null,null,null,null,null,null,null,null,null,null,null,null,null,null,null,null,null,null,null,null,null,"Netden Brüte"]
[null,null,"Birinci Dilim",158000,0.15,null,null,null,null,"İmalat Sektöründeki NORMAL Çalışan",null,null,null,"60 Gün",null,null,"Şubat","Hayır, yararlanmıyoruz",null,null,null,null,null,null,null,null,null,null,null,null,null,null,null,null,null,null,null,null,null,null,null,null,null,null,null,null,null,null,null,null,null,null,null,null,null,null,null,null,null,null,null,null,null,null,null,null,null,null,null,null,null,null,null,null,null,null,null,null,null,null,null,null,null,null,null,null,null,null,null,null,null,null,null,null,null,null,null,null,null,null,null,null,null,null,null,null,null,null,null,null,null,null,null,null,null,null,null,null,null,null,null,null,null,null,null,null,null,null,null,null,null,null,null,null,null,null,null,null,null,null,null,null,null,null,null,null,null,null,null,null,null,null,null,null,null,null,null,null,null,null,null,null,null,null,null,null,null,null,null,null,null,null,null,null,null,null,null,null,null,null,null,null,null,null,null,null,null,null,null,null,null,null,null,null,null,null,null,null,null,null,null,null,null,null,null,null,null,null,null,null,null,null,null,null,null,null,null,null,null,null,null,null,null,null,null,null,null,null,null,null,null,null,null,null,null,null,null,null,null,null,null,null,null,null,null,null,null,null,null,null,null,null,null,null,null,null,null,null,null,null,null,null,null,null,null,null,null,null,null,null,null,null,null,null,null,null,null,null,null,null,null,null,null,null,null,null,null,null,null,null,null,null,null,null,null,null,null,null,null,null,null,null,null,null,null,null,null,null,null,null,null,null,null,null,null,null,null,null,null,null,null,null,null,null,null,null,null,null,null,null,null,null,null,null,null,null,null,null,null,null,null,null,null,null,null,null,null,null,null,null,null,null,null,null,null,null,null,null,null,null,null,null,null,null,null,null,null,null,null,null,null,null,null,null,null,null,null,null,null,null,null,null,null,null,null,null,null,null,null,null,null,null,null,null,null,null,null,null,null,null,null,null,null,null,null,null,null,null,null,null,null,null,null,null,null,null,null,null,null,null,null,null,null,null,null,null,null,null,null,null,null,null,null,null,null,null,null,null,null,null,null,null,null,null,null,null,null,null,null,null,null,null,null,null,null,null,null,null,null,null,null,null,null,null,null,null,null,null,null,null,null,null,null,null,null,null,null,null,null,null,null,null,null,null,null,null,"NettenBrüte"]
[null,null,"İkinci Dilim",330000,0.2,null,null,null,null,"Emekli Çalışan",null,null,null,"90 Gün",null,null,"Mart",null,null,null,null,null,null,null,null,null,null,null,null,null,null,null,null,null,null,null,null,null,null,null,null,null,null,null,null,null,null,null,null,null,null,null,null,null,null,null,null,null,null,null,null,null,null,null,null,null,null,null,null,null,null,null,null,null,null,null,null,null,null,null,null,null,null,null,null,null,null,null,null,null,null,null,null,null,null,null,null,null,null,null,null,null,null,null,null,null,null,null,null,null,null,null,null,null,null,null,null,null,null,null,null,null,null,null,null,null,null,null,null,null,null,null,null,null,null,null,null,null,null,null,null,null,null,null,null,null,null,null,null,null,null,null,null,null,null,null,null,null,null,null,null,null,null,null,null,null,null,null,null,null,null,null,null,null,null,null,null,null,null,null,null,null,null,null,null,null,null,null,null,null,null,null,null,null,null,null,null,null,null,null,null,null,null,null,null,null,null,null,null,null,null,null,null,null,null,null,null,null,null,null,null,null,null,null,null,null,null,null,null,null,null,null,null,null,null,null,null,null,null,null,null,null,null,null,null,null,null,null,null,null,null,null,null,null,null,null,null,null,null,null,null,null,null,null,null,null,null,null,null,null,null,null,null,null,null,null,null,null,null,null,null,null,null,null,null,null,null,null,null,null,null,null,null,null,null,null,null,null,null,null,null,null,null,null,null,null,null,null,null,null,null,null,null,null,null,null,null,null,null,null,null,null,null,null,null,null,null,null,null,null,null,null,null,null,null,null,null,null,null,null,null,null,null,null,null,null,null,null,null,null,null,null,null,null,null,null,null,null,null,null,null,null,null,null,null,null,null,null,null,null,null,null,null,null,null,null,null,null,null,null,null,null,null,null,null,null,null,null,null,null,null,null,null,null,null,null,null,null,null,null,null,null,null,null,null,null,null,null,null,null,null,null,null,null,null,null,null,null,null,null,null,null,null,null,null,null,null,null,null,null,null,null,null,null,null,null,null,null,null,null,null,null,null,null,null,null,null,null,null,null,null,null,null,null,null,null,null,null,null,null,null,null,null,null,null,null,null,null,null,null,null,null,null,null,null,null,null,null,null,null,null,null,null,null,null,null,"netten brüte"]
[null,null,"Üçüncü Dilim",1200000,0.27,null,null,null,null,"Huzur Hakkı Ücreti",null,null,null,"180 Gün",null,null,"Nisan",null,null,null,null,null,null,null,null,null,null,null,null,null,null,null,null,null,null,null,null,null,null,null,null,null,null,null,null,null,null,null,null,null,null,null,null,null,null,null,null,null,null,null,null,null,null,null,null,null,null,null,null,null,null,null,null,null,null,null,null,null,null,null,null,null,null,null,null,null,null,null,null,null,null,null,null,null,null,null,null,null,null,null,null,null,null,null,null,null,null,null,null,null,null,null,null,null,null,null,null,null,null,null,null,null,null,null,null,null,null,null,null,null,null,null,null,null,null,null,null,null,null,null,null,null,null,null,null,null,null,null,null,null,null,null,null,null,null,null,null,null,null,null,null,null,null,null,null,null,null,null,null,null,null,null,null,null,null,null,null,null,null,null,null,null,null,null,null,null,null,null,null,null,null,null,null,null,null,null,null,null,null,null,null,null,null,null,null,null,null,null,null,null,null,null,null,null,null,null,null,null,null,null,null,null,null,null,null,null,null,null,null,null,null,null,null,null,null,null,null,null,null,null,null,null,null,null,null,null,null,null,null,null,null,null,null,null,null,null,null,null,null,null,null,null,null,null,null,null,null,null,null,null,null,null,null,null,null,null,null,null,null,null,null,null,null,null,null,null,null,null,null,null,null,null,null,null,null,null,null,null,null,null,null,null,null,null,null,null,null,null,null,null,null,null,null,null,null,null,null,null,null,null,null,null,null,null,null,null,null,null,null,null,null,null,null,null,null,null,null,null,null,null,null,null,null,null,null,null,null,null,null,null,null,null,null,null,null,null,null,null,null,null,null,null,null,null,null,null,null,null,null,null,null,null,null,null,null,null,null,null,null,null,null,null,null,null,null,null,null,null,null,null,null,null,null,null,null,null,null,null,null,null,null,null,null,null,null,null,null,null,null,null,null,null,null,null,null,null,null,null,null,null,null,null,null,null,null,null,null,null,null,null,null,null,null,null,null,null,null,null,null,null,null,null,null,null,null,null,null,null,null,null,null,null,null,null,null,null,null,null,null,null,null,null,null,null,null,null,null,null,null,null,null,null,null,null,null,null,null,null,null,null,null,null,null,null,null,null,"netden brüte"]
[null,null,"Dördüncü  Dilim",4300000,0.35,null,null,null,null,null,null,null,null,null,null,null,"Mayıs",null,null,null,null,null,null,null,null,null,null,null,null,null,null,null,null,null,null,null,null,null,null,null,null,null,null,null,null,null,null,null,null,null,null,null,null,null,null,null,null,null,null,null,null,null,null,null,null,null,null,null,null,null,null,null,null,null,null,null,null,null,null,null,null,null,null,null,null,null,null,null,null,null,null,null,null,null,null,null,null,null,null,null,null,null,null,null,null,null,null,null,null,null,null,null,null,null,null,null,null,null,null,null,null,null,null,null,null,null,null,null,null,null,null,null,null,null,null,null,null,null,null,null,null,null,null,null,null,null,null,null,null,null,null,null,null,null,null,null,null,null,null,null,null,null,null,null,null,null,null,null,null,null,null,null,null,null,null,null,null,null,null,null,null,null,null,null,null,null,null,null,null,null,null,null,null,null,null,null,null,null,null,null,null,null,null,null,null,null,null,null,null,null,null,null,null,null,null,null,null,null,null,null,null,null,null,null,null,null,null,null,null,null,null,null,null,null,null,null,null,null,null,null,null,null,null,null,null,null,null,null,null,null,null,null,null,null,null,null,null,null,null,null,null,null,null,null,null,null,null,null,null,null,null,null,null,null,null,null,null,null,null,null,null,null,null,null,null,null,null,null,null,null,null,null,null,null,null,null,null,null,null,null,null,null,null,null,null,null,null,null,null,null,null,null,null,null,null,null,null,null,null,null,null,null,null,null,null,null,null,null,null,null,null,null,null,null,null,null,null,null,null,null,null,null,null,null,null,null,null,null,null,null,null,null,null,null,null,null,null,null,null,null,null,null,null,null,null,null,null,null,null,null,null,null,null,null,null,null,null,null,null,null,null,null,null,null,null,null,null,null,null,null,null,null,null,null,null,null,null,null,null,null,null,null,null,null,null,null,null,null,null,null,null,null,null,null,null,null,null,null,null,null,null,null,null,null,null,null,null,null,null,null,null,null,null,null,null,null,null,null,null,null,null,null,null,null,null,null,null,null,null,null,null,null,null,null,null,null,null,null,null,null,null,null,null,null,null,null,null,null,null,null,null,null,null,null,null,null,null,null,null,null,null,null,null,null,null,null,"Netten Brüte maaş nasıl hesaplanır"]
[null,null,"Beşinci  Dilim",{"$f":"D10+0.01","v":4300000.01},0.4,null,null,null,null,null,null,null,null,null,null,null,"Haziran",null,null,null,null,null,null,null,null,null,null,null,null,null,null,null,null,null,null,null,null,null,null,null,null,null,null,null,null,null,null,null,null,null,null,null,null,null,null,null,null,null,null,null,null,null,null,null,null,null,null,null,null,null,null,null,null,null,null,null,null,null,null,null,null,null,null,null,null,null,null,null,null,null,null,null,null,null,null,null,null,null,null,null,null,null,null,null,null,null,null,null,null,null,null,null,null,null,null,null,null,null,null,null,null,null,null,null,null,null,null,null,null,null,null,null,null,null,null,null,null,null,null,null,null,null,null,null,null,null,null,null,null,null,null,null,null,null,null,null,null,null,null,null,null,null,null,null,null,null,null,null,null,null,null,null,null,null,null,null,null,null,null,null,null,null,null,null,null,null,null,null,null,null,null,null,null,null,null,null,null,null,null,null,null,null,null,null,null,null,null,null,null,null,null,null,null,null,null,null,null,null,null,null,null,null,null,null,null,null,null,null,null,null,null,null,null,null,null,null,null,null,null,null,null,null,null,null,null,null,null,null,null,null,null,null,null,null,null,null,null,null,null,null,null,null,null,null,null,null,null,null,null,null,null,null,null,null,null,null,null,null,null,null,null,null,null,null,null,null,null,null,null,null,null,null,null,null,null,null,null,null,null,null,null,null,null,null,null,null,null,null,null,null,null,null,null,null,null,null,null,null,null,null,null,null,null,null,null,null,null,null,null,null,null,null,null,null,null,null,null,null,null,null,null,null,null,null,null,null,null,null,null,null,null,null,null,null,null,null,null,null,null,null,null,null,null,null,null,null,null,null,null,null,null,null,null,null,null,null,null,null,null,null,null,null,null,null,null,null,null,null,null,null,null,null,null,null,null,null,null,null,null,null,null,null,null,null,null,null,null,null,null,null,null,null,null,null,null,null,null,null,null,null,null,null,null,null,null,null,null,null,null,null,null,null,null,null,null,null,null,null,null,null,null,null,null,null,null,null,null,null,null,null,null,null,null,null,null,null,null,null,null,null,null,null,null,null,null,null,null,null,null,null,null,null,null,null,null,null,null,null,null,null,null,null,null,null,null,null,"Netten Brüte ücret nasıl hesaplanır"]
[null,null,null,null,null,null,null,null,null,null,null,null,null,null,null,null,"Temmuz",null,null,null,null,null,null,null,null,null,null,null,null,null,null,null,null,null,null,null,null,null,null,null,null,null,null,null,null,null,null,null,null,null,null,null,null,null,null,null,null,null,null,null,null,null,null,null,null,null,null,null,null,null,null,null,null,null,null,null,null,null,null,null,null,null,null,null,null,null,null,null,null,null,null,null,null,null,null,null,null,null,null,null,null,null,null,null,null,null,null,null,null,null,null,null,null,null,null,null,null,null,null,null,null,null,null,null,null,null,null,null,null,null,null,null,null,null,null,null,null,null,null,null,null,null,null,null,null,null,null,null,null,null,null,null,null,null,null,null,null,null,null,null,null,null,null,null,null,null,null,null,null,null,null,null,null,null,null,null,null,null,null,null,null,null,null,null,null,null,null,null,null,null,null,null,null,null,null,null,null,null,null,null,null,null,null,null,null,null,null,null,null,null,null,null,null,null,null,null,null,null,null,null,null,null,null,null,null,null,null,null,null,null,null,null,null,null,null,null,null,null,null,null,null,null,null,null,null,null,null,null,null,null,null,null,null,null,null,null,null,null,null,null,null,null,null,null,null,null,null,null,null,null,null,null,null,null,null,null,null,null,null,null,null,null,null,null,null,null,null,null,null,null,null,null,null,null,null,null,null,null,null,null,null,null,null,null,null,null,null,null,null,null,null,null,null,null,null,null,null,null,null,null,null,null,null,null,null,null,null,null,null,null,null,null,null,null,null,null,null,null,null,null,null,null,null,null,null,null,null,null,null,null,null,null,null,null,null,null,null,null,null,null,null,null,null,null,null,null,null,null,null,null,null,null,null,null,null,null,null,null,null,null,null,null,null,null,null,null,null,null,null,null,null,null,null,null,null,null,null,null,null,null,null,null,null,null,null,null,null,null,null,null,null,null,null,null,null,null,null,null,null,null,null,null,null,null,null,null,null,null,null,null,null,null,null,null,null,null,null,null,null,null,null,null,null,null,null,null,null,null,null,null,null,null,null,null,null,null,null,null,null,null,null,null,null,null,null,null,null,null,null,null,null,null,null,null,null,null,null,null,null,null,null,null,null,null,null,null,"netten brute"]
[null,null,null,null,null,null,null,null,null,null,null,null,null,null,null,null,"Ağustos",null,null,null,null,null,null,null,null,null,null,null,null,null,null,null,null,null,null,null,null,null,null,null,null,null,null,null,null,null,null,null,null,null,null,null,null,null,null,null,null,null,null,null,null,null,null,null,null,null,null,null,null,null,null,null,null,null,null,null,null,null,null,null,null,null,null,null,null,null,null,null,null,null,null,null,null,null,null,null,null,null,null,null,null,null,null,null,null,null,null,null,null,null,null,null,null,null,null,null,null,null,null,null,null,null,null,null,null,null,null,null,null,null,null,null,null,null,null,null,null,null,null,null,null,null,null,null,null,null,null,null,null,null,null,null,null,null,null,null,null,null,null,null,null,null,null,null,null,null,null,null,null,null,null,null,null,null,null,null,null,null,null,null,null,null,null,null,null,null,null,null,null,null,null,null,null,null,null,null,null,null,null,null,null,null,null,null,null,null,null,null,null,null,null,null,null,null,null,null,null,null,null,null,null,null,null,null,null,null,null,null,null,null,null,null,null,null,null,null,null,null,null,null,null,null,null,null,null,null,null,null,null,null,null,null,null,null,null,null,null,null,null,null,null,null,null,null,null,null,null,null,null,null,null,null,null,null,null,null,null,null,null,null,null,null,null,null,null,null,null,null,null,null,null,null,null,null,null,null,null,null,null,null,null,null,null,null,null,null,null,null,null,null,null,null,null,null,null,null,null,null,null,null,null,null,null,null,null,null,null,null,null,null,null,null,null,null,null,null,null,null,null,null,null,null,null,null,null,null,null,null,null,null,null,null,null,null,null,null,null,null,null,null,null,null,null,null,null,null,null,null,null,null,null,null,null,null,null,null,null,null,null,null,null,null,null,null,null,null,null,null,null,null,null,null,null,null,null,null,null,null,null,null,null,null,null,null,null,null,null,null,null,null,null,null,null,null,null,null,null,null,null,null,null,null,null,null,null,null,null,null,null,null,null,null,null,null,null,null,null,null,null,null,null,null,null,null,null,null,null,null,null,null,null,null,null,null,null,null,null,null,null,null,null,null,null,null,null,null,null,null,null,null,null,null,null,null,null,null,null,null,null,null,null,null,null,null,null,null,"netden brute"]
[null,null,null,null,null,null,null,null,null,"Çalışanın çocuk sayısı",null,null,null,null,null,null,"Eylül"]
[null,null,null,null,null,null,null,null,null,"Yok",null,null,null,null,null,null,"Ekim"]
[null,null,null,null,null,null,null,null,null,1,null,null,null,null,null,null,"Kasım"]
[null,null,null,null,null,null,null,null,null,2,null,null,null,null,null,null,"Aralık"]
[null,null,null,null,null,null,null,null,null,3]
[null,null,null,null,null,null,null,null,null,4]
[null,null,null,null,null,null,null,null,null,5]
[null,null,null,null,null,null,null,null,null,6,null,null,null,null,null,null,null,null,null,null,null,null,null,null,null,null,null,null,null,null,null,null,null,null,null,null,null,null,null,null,null,null,null,null,null,null,null,null,null,null,null,null,null,null,null,null,null,null,null,null,null,null,null,null,null,null,null,null,null,null,null,null,null,null,null,null,null,null,null,null,null,null,null,null,null,null,null,null,null,null,null,null,null,null,null,null,null,null,null,null,null,null,null,null,null,null,null,null,null,null,null,null,null,null,null,null,null,null,null,null,null,null,null,null,null,null,null,null,null,null,null,null,null,null,null,null,null,null,null,null,null,null,null,null,null,null,null,null,null,null,null,null,null,null,null,null,null,null,null,null,null,null,null,null,null,null,null,null,null,null,null,null,null,null,null,null,null,null,null,null,null,null,null,null,null,null,null,null,null,null,null,null,null,null,null,null,null,null,null,null,null,null,null,null,null,null,null,null,null,null,null,null,null,null,null,null,null,null,null,null,null,null,null,null,null,null,null,null,null,null,null,null,null,null,null,null,null,null,null,null,null,null,null,null,null,null,null,null,null,null,null,null,null,null,null,null,null,null,null,null,null,null,null,null,null,null,null,null,null,null,null,null,null,null,null,null,null,null,null,null,null,null,null,null,null,null,null,null,null,null,null,null,null,null,null,null,null,null,null,null,null,null,null,null,null,null,null,null,null,null,null,null,null,null,null,null,null,null,null,null,null,null,null,null,null,null,null,null,null,null,null,null,null,null,null,null,null,null,null,null,null,null,null,null,null,null,null,null,null,null,null,null,null,null,null,null,null,null,null,null,null,null,null,null,null,null,null,null,null,null,null,null,null,null,null,null,null,null,null,null,null,null,null,null,null,null,null,null,null,null,null,null,null,null,null,null,null,null,null,null,null,null,null,null,null,null,null,null,null,null,null,null,null,null,null,null,null,null,null,null,null,null,null,null,null,null,null,null,null,null,null,null,null,null,null,null,null,null,null,null,null,null,null,null,null,null,null,null,null,null,null,null,null,null,null,null,null,null,null,null,null,null,null,null,null,null,null,null,null,null,null,null,null,null,null,null,null,null,null,null,null,null,null,null,null,null,"Brütten Nete"]
[null,null,null,null,null,null,null,null,null,7,null,null,null,null,null,null,null,null,null,null,null,null,null,null,null,null,null,null,null,null,null,null,null,null,null,null,null,null,null,null,null,null,null,null,null,null,null,null,null,null,null,null,null,null,null,null,null,null,null,null,null,null,null,null,null,null,null,null,null,null,null,null,null,null,null,null,null,null,null,null,null,null,null,null,null,null,null,null,null,null,null,null,null,null,null,null,null,null,null,null,null,null,null,null,null,null,null,null,null,null,null,null,null,null,null,null,null,null,null,null,null,null,null,null,null,null,null,null,null,null,null,null,null,null,null,null,null,null,null,null,null,null,null,null,null,null,null,null,null,null,null,null,null,null,null,null,null,null,null,null,null,null,null,null,null,null,null,null,null,null,null,null,null,null,null,null,null,null,null,null,null,null,null,null,null,null,null,null,null,null,null,null,null,null,null,null,null,null,null,null,null,null,null,null,null,null,null,null,null,null,null,null,null,null,null,null,null,null,null,null,null,null,null,null,null,null,null,null,null,null,null,null,null,null,null,null,null,null,null,null,null,null,null,null,null,null,null,null,null,null,null,null,null,null,null,null,null,null,null,null,null,null,null,null,null,null,null,null,null,null,null,null,null,null,null,null,null,null,null,null,null,null,null,null,null,null,null,null,null,null,null,null,null,null,null,null,null,null,null,null,null,null,null,null,null,null,null,null,null,null,null,null,null,null,null,null,null,null,null,null,null,null,null,null,null,null,null,null,null,null,null,null,null,null,null,null,null,null,null,null,null,null,null,null,null,null,null,null,null,null,null,null,null,null,null,null,null,null,null,null,null,null,null,null,null,null,null,null,null,null,null,null,null,null,null,null,null,null,null,null,null,null,null,null,null,null,null,null,null,null,null,null,null,null,null,null,null,null,null,null,null,null,null,null,null,null,null,null,null,null,null,null,null,null,null,null,null,null,null,null,null,null,null,null,null,null,null,null,null,null,null,null,null,null,null,null,null,null,null,null,null,null,null,null,null,null,null,null,null,null,null,null,null,null,null,null,null,null,null,null,null,null,null,null,null,null,null,null,null,null,null,null,null,null,null,null,null,null,null,null,null,null,null,null,null,null,"Brütten Nete Maaş"]
[null,null,null,null,null,null,null,null,null,8,null,null,null,null,null,null,null,null,null,null,null,null,null,null,null,null,null,null,null,null,null,null,null,null,null,null,null,null,null,null,null,null,null,null,null,null,null,null,null,null,null,null,null,null,null,null,null,null,null,null,null,null,null,null,null,null,null,null,null,null,null,null,null,null,null,null,null,null,null,null,null,null,null,null,null,null,null,null,null,null,null,null,null,null,null,null,null,null,null,null,null,null,null,null,null,null,null,null,null,null,null,null,null,null,null,null,null,null,null,null,null,null,null,null,null,null,null,null,null,null,null,null,null,null,null,null,null,null,null,null,null,null,null,null,null,null,null,null,null,null,null,null,null,null,null,null,null,null,null,null,null,null,null,null,null,null,null,null,null,null,null,null,null,null,null,null,null,null,null,null,null,null,null,null,null,null,null,null,null,null,null,null,null,null,null,null,null,null,null,null,null,null,null,null,null,null,null,null,null,null,null,null,null,null,null,null,null,null,null,null,null,null,null,null,null,null,null,null,null,null,null,null,null,null,null,null,null,null,null,null,null,null,null,null,null,null,null,null,null,null,null,null,null,null,null,null,null,null,null,null,null,null,null,null,null,null,null,null,null,null,null,null,null,null,null,null,null,null,null,null,null,null,null,null,null,null,null,null,null,null,null,null,null,null,null,null,null,null,null,null,null,null,null,null,null,null,null,null,null,null,null,null,null,null,null,null,null,null,null,null,null,null,null,null,null,null,null,null,null,null,null,null,null,null,null,null,null,null,null,null,null,null,null,null,null,null,null,null,null,null,null,null,null,null,null,null,null,null,null,null,null,null,null,null,null,null,null,null,null,null,null,null,null,null,null,null,null,null,null,null,null,null,null,null,null,null,null,null,null,null,null,null,null,null,null,null,null,null,null,null,null,null,null,null,null,null,null,null,null,null,null,null,null,null,null,null,null,null,null,null,null,null,null,null,null,null,null,null,null,null,null,null,null,null,null,null,null,null,null,null,null,null,null,null,null,null,null,null,null,null,null,null,null,null,null,null,null,null,null,null,null,null,null,null,null,null,null,null,null,null,null,null,null,null,null,null,null,null,null,null,null,null,null,null,null,null,"Brütten Nete Ücret"]
[null,null,null,null,null,null,null,null,null,9,null,null,null,null,null,null,null,null,null,null,null,null,null,null,null,null,null,null,null,null,null,null,null,null,null,null,null,null,null,null,null,null,null,null,null,null,null,null,null,null,null,null,null,null,null,null,null,null,null,null,null,null,null,null,null,null,null,null,null,null,null,null,null,null,null,null,null,null,null,null,null,null,null,null,null,null,null,null,null,null,null,null,null,null,null,null,null,null,null,null,null,null,null,null,null,null,null,null,null,null,null,null,null,null,null,null,null,null,null,null,null,null,null,null,null,null,null,null,null,null,null,null,null,null,null,null,null,null,null,null,null,null,null,null,null,null,null,null,null,null,null,null,null,null,null,null,null,null,null,null,null,null,null,null,null,null,null,null,null,null,null,null,null,null,null,null,null,null,null,null,null,null,null,null,null,null,null,null,null,null,null,null,null,null,null,null,null,null,null,null,null,null,null,null,null,null,null,null,null,null,null,null,null,null,null,null,null,null,null,null,null,null,null,null,null,null,null,null,null,null,null,null,null,null,null,null,null,null,null,null,null,null,null,null,null,null,null,null,null,null,null,null,null,null,null,null,null,null,null,null,null,null,null,null,null,null,null,null,null,null,null,null,null,null,null,null,null,null,null,null,null,null,null,null,null,null,null,null,null,null,null,null,null,null,null,null,null,null,null,null,null,null,null,null,null,null,null,null,null,null,null,null,null,null,null,null,null,null,null,null,null,null,null,null,null,null,null,null,null,null,null,null,null,null,null,null,null,null,null,null,null,null,null,null,null,null,null,null,null,null,null,null,null,null,null,null,null,null,null,null,null,null,null,null,null,null,null,null,null,null,null,null,null,null,null,null,null,null,null,null,null,null,null,null,null,null,null,null,null,null,null,null,null,null,null,null,null,null,null,null,null,null,null,null,null,null,null,null,null,null,null,null,null,null,null,null,null,null,null,null,null,null,null,null,null,null,null,null,null,null,null,null,null,null,null,null,null,null,null,null,null,null,null,null,null,null,null,null,null,null,null,null,null,null,null,null,null,null,null,null,null,null,null,null,null,null,null,null,null,null,null,null,null,null,null,null,null,null,null,null,null,null,null,null,null,null,"Brütten Nete Ücret Hesaplaması"]
[null,null,null,null,null,null,null,null,null,10,null,null,null,null,null,null,null,null,null,null,null,null,null,null,null,null,null,null,null,null,null,null,null,null,null,null,null,null,null,null,null,null,null,null,null,null,null,null,null,null,null,null,null,null,null,null,null,null,null,null,null,null,null,null,null,null,null,null,null,null,null,null,null,null,null,null,null,null,null,null,null,null,null,null,null,null,null,null,null,null,null,null,null,null,null,null,null,null,null,null,null,null,null,null,null,null,null,null,null,null,null,null,null,null,null,null,null,null,null,null,null,null,null,null,null,null,null,null,null,null,null,null,null,null,null,null,null,null,null,null,null,null,null,null,null,null,null,null,null,null,null,null,null,null,null,null,null,null,null,null,null,null,null,null,null,null,null,null,null,null,null,null,null,null,null,null,null,null,null,null,null,null,null,null,null,null,null,null,null,null,null,null,null,null,null,null,null,null,null,null,null,null,null,null,null,null,null,null,null,null,null,null,null,null,null,null,null,null,null,null,null,null,null,null,null,null,null,null,null,null,null,null,null,null,null,null,null,null,null,null,null,null,null,null,null,null,null,null,null,null,null,null,null,null,null,null,null,null,null,null,null,null,null,null,null,null,null,null,null,null,null,null,null,null,null,null,null,null,null,null,null,null,null,null,null,null,null,null,null,null,null,null,null,null,null,null,null,null,null,null,null,null,null,null,null,null,null,null,null,null,null,null,null,null,null,null,null,null,null,null,null,null,null,null,null,null,null,null,null,null,null,null,null,null,null,null,null,null,null,null,null,null,null,null,null,null,null,null,null,null,null,null,null,null,null,null,null,null,null,null,null,null,null,null,null,null,null,null,null,null,null,null,null,null,null,null,null,null,null,null,null,null,null,null,null,null,null,null,null,null,null,null,null,null,null,null,null,null,null,null,null,null,null,null,null,null,null,null,null,null,null,null,null,null,null,null,null,null,null,null,null,null,null,null,null,null,null,null,null,null,null,null,null,null,null,null,null,null,null,null,null,null,null,null,null,null,null,null,null,null,null,null,null,null,null,null,null,null,null,null,null,null,null,null,null,null,null,null,null,null,null,null,null,null,null,null,null,null,null,null,null,null,null,null,null,null,"Brütten Nete Maaş Hesaplaması"]
[null,null,null,null,null,null,null,null,null,11,null,null,null,null,null,null,null,null,null,null,null,null,null,null,null,null,null,null,null,null,null,null,null,null,null,null,null,null,null,null,null,null,null,null,null,null,null,null,null,null,null,null,null,null,null,null,null,null,null,null,null,null,null,null,null,null,null,null,null,null,null,null,null,null,null,null,null,null,null,null,null,null,null,null,null,null,null,null,null,null,null,null,null,null,null,null,null,null,null,null,null,null,null,null,null,null,null,null,null,null,null,null,null,null,null,null,null,null,null,null,null,null,null,null,null,null,null,null,null,null,null,null,null,null,null,null,null,null,null,null,null,null,null,null,null,null,null,null,null,null,null,null,null,null,null,null,null,null,null,null,null,null,null,null,null,null,null,null,null,null,null,null,null,null,null,null,null,null,null,null,null,null,null,null,null,null,null,null,null,null,null,null,null,null,null,null,null,null,null,null,null,null,null,null,null,null,null,null,null,null,null,null,null,null,null,null,null,null,null,null,null,null,null,null,null,null,null,null,null,null,null,null,null,null,null,null,null,null,null,null,null,null,null,null,null,null,null,null,null,null,null,null,null,null,null,null,null,null,null,null,null,null,null,null,null,null,null,null,null,null,null,null,null,null,null,null,null,null,null,null,null,null,null,null,null,null,null,null,null,null,null,null,null,null,null,null,null,null,null,null,null,null,null,null,null,null,null,null,null,null,null,null,null,null,null,null,null,null,null,null,null,null,null,null,null,null,null,null,null,null,null,null,null,null,null,null,null,null,null,null,null,null,null,null,null,null,null,null,null,null,null,null,null,null,null,null,null,null,null,null,null,null,null,null,null,null,null,null,null,null,null,null,null,null,null,null,null,null,null,null,null,null,null,null,null,null,null,null,null,null,null,null,null,null,null,null,null,null,null,null,null,null,null,null,null,null,null,null,null,null,null,null,null,null,null,null,null,null,null,null,null,null,null,null,null,null,null,null,null,null,null,null,null,null,null,null,null,null,null,null,null,null,null,null,null,null,null,null,null,null,null,null,null,null,null,null,null,null,null,null,null,null,null,null,null,null,null,null,null,null,null,null,null,null,null,null,null,null,null,null,null,null,null,null,null,null,"Brütten Nete ücret  nasıl Hesaplanır"]
[null,null,"SSK Priminden İstisna Yemek, Çocuk ve Aile Zammı Tutarları",null,null,null,null,null,null,12,null,null,null,null,null,null,null,null,null,null,null,null,null,null,null,null,null,null,null,null,null,null,null,null,null,null,null,null,null,null,null,null,null,null,null,null,null,null,null,null,null,null,null,null,null,null,null,null,null,null,null,null,null,null,null,null,null,null,null,null,null,null,null,null,null,null,null,null,null,null,null,null,null,null,null,null,null,null,null,null,null,null,null,null,null,null,null,null,null,null,null,null,null,null,null,null,null,null,null,null,null,null,null,null,null,null,null,null,null,null,null,null,null,null,null,null,null,null,null,null,null,null,null,null,null,null,null,null,null,null,null,null,null,null,null,null,null,null,null,null,null,null,null,null,null,null,null,null,null,null,null,null,null,null,null,null,null,null,null,null,null,null,null,null,null,null,null,null,null,null,null,null,null,null,null,null,null,null,null,null,null,null,null,null,null,null,null,null,null,null,null,null,null,null,null,null,null,null,null,null,null,null,null,null,null,null,null,null,null,null,null,null,null,null,null,null,null,null,null,null,null,null,null,null,null,null,null,null,null,null,null,null,null,null,null,null,null,null,null,null,null,null,null,null,null,null,null,null,null,null,null,null,null,null,null,null,null,null,null,null,null,null,null,null,null,null,null,null,null,null,null,null,null,null,null,null,null,null,null,null,null,null,null,null,null,null,null,null,null,null,null,null,null,null,null,null,null,null,null,null,null,null,null,null,null,null,null,null,null,null,null,null,null,null,null,null,null,null,null,null,null,null,null,null,null,null,null,null,null,null,null,null,null,null,null,null,null,null,null,null,null,null,null,null,null,null,null,null,null,null,null,null,null,null,null,null,null,null,null,null,null,null,null,null,null,null,null,null,null,null,null,null,null,null,null,null,null,null,null,null,null,null,null,null,null,null,null,null,null,null,null,null,null,null,null,null,null,null,null,null,null,null,null,null,null,null,null,null,null,null,null,null,null,null,null,null,null,null,null,null,null,null,null,null,null,null,null,null,null,null,null,null,null,null,null,null,null,null,null,null,null,null,null,null,null,null,null,null,null,null,null,null,null,null,null,null,null,null,null,null,null,null,null,null,null,null,null,null,null,null,null,null,null,null,null,null,"Brütten Nete Maaş nasıl Hesaplanır"]
[null,null,"Ödemenin Nevi","İstisnanın Tespit Şekli"," 1.1.2009-30.06.2009 İÇİN ","1.7.2009-31.12.2009 İÇİN"]
[null,null,"Yemek Parası (Günlük)","16 yaşından büyükler için her yıl belirlenen günlük asgari ücretin % 6'sı",{"$f":"ROUND(E24*0.06,2)","v":0},{"$f":"ROUND(E25*0.06,2)","v":0},"x Fiilen çalışılan gün sayısı"]
[null,null,"Çoçuk Zammı","16 yaşından büyükler için belirlenen aylık asgari ücretin % 2'si (en fazla 2 Çocuk için)",{"$f":"ROUND(F24*0.02,2)","v":0},{"$f":"ROUND(F25*0.02,2)","v":0},"X Çoçuk sayısı (en fazla 2 çocuk için)"]
[null,null,"Aile Zammı","16 yaşından büyükler için belirlenen aylık asgari ücretin %10'u",{"$f":"ROUND(F24*0.1,2)","v":0},{"$f":"ROUND(F25*0.1,2)","v":0}]
[]
[]
[]
[null,null,"Gelir Vergisinden İstisna Yemek ve Çocuk  Paraları (Aylık)"]
[null,null,"Ödemenin Nevi","İstisnanın Tespit Şekli"," 1.1.2009-30.06.2009 İÇİN ","1.7.2009-31.12.2009 İÇİN"]
[null,null,"Yemek Parası (Günlük)","YDO'na göre",10.8,10.8]
[null,null,"Çoçuk Yardımı ( 6 yaşından büyük çocuklar için)","En fazla 2 çocuk için.Devletçe verilen tutarı aşamaz",13.38,13.98]
[null,null,"Çoçuk Yardımı (0- 6 yaş çocuklar için)",null,{"$f":"(E38*2)-0.01","v":26.75},{"$f":"F38*2","v":27.96}]
[]
[]
[]
[]
[]
[]
[null,null,null,null,null,null,null,null,null,null,null,null,null,null,null,null,null,null,null,"Sigorta Prim Oranları ",null,null,null,null,null,null,null,null,null,null,null,null,null,null,null,null,null,"Sigorta Prim Oranları "]
[null,null,null,null,null,null,null,null,null,null,null,null,null,null,null,null,null,null,null,"Normal Çalışanlar",null,null,null,null,null,null,null,null,null,null,null,null,null,null,null,null,null,"Emekli Çalışanlar",null,null,null,null,null,null,null,null,null,null,null,null,null,null,null,null,null,null,null,null,null,null,null,null,null,null,null,null,null,null,null,null,null,null,null,null,null,null,null,null,null,null,null,null,null,null,null,null,null,null,null,null,null,null,null,null,null,null,null,null,null,null,null,null,null,null,null,null,null,null,null,null,null,null,null,null,null,null,null,null,null,null,null,null,null,null,null,null,null,null,null,null,null,null,null,null,null,null,null,null,null,null,null,null,null,null,null,null,null,null,null,null,null,null,null,null,null,null,null,null,null,null,null,null,null,null,null,null,null,null,null,null,null,null,null,null,null,null,null,null,null,null,null,null,null,null,null,null,null,null,null,null,null,null,null,null,null,null,null,null,null,null,null,null,null,null,null,null,null,null,null,null,null,null,null,null,null,null,null,null,null,null,null,null,null,null,null,null,null,null,null,null,null,null,null,null,null,null,null,null,null,null,null,null,null,null,null,null,null,null,null,null,null,null,null,null,null,null,null,null,null,null,null,null,null,null,null,null,null,null,null,null,null,null,null,null,null,null,null,null,null,null,null,null,null,null,null,null,null,null,null,null,null,null,null,null,null,null,null,null,null,null,null,null,null,null,null,null,null,null,null,null,null,null,null,null,null,null,null,null,null,null,null,null,null,null,null,null,null,null,null,null,null,null,null,null,null,null,null,null,null,null,null,null,null,null,null,null,null,null,null,null,null,null,null,null,null,null,null,null,null,null,null,null,null,null,null,null,null,null,null,null,null,null,null,null,null,null,null,null,null,null,null,null,null,null,null,null,null,null,null,null,null,null,null,null,null,null,null,null,null,null,null,null,null,null,null,null,null,null,null,null,null,null,null,null,null,null,null,null,null,null,null,null,null,null,null,null,null,null,null,null,null,null,null,null,null,null,null,null,null,null,null,null,null,null,null,null,null,null,null,null,null,null,null,null,null,null,null,null,null,null,null,null,null,null,null,null,null,null,null,null,null,null,null,null,null,null,null,null,null,null,null,null,null,null,null,null,"brütten nete"]
[null,null,null,"ASgari Ücret & SG Prim Tabanı & Tavanı",null,null,null,null,null,null,null,null,null,null,null,null,null,null,null,"İşçi Primi Oranları",null,null,null,null,null,null,"İşveren prim oranları ",null,null,null,null,null,null,null,null,null,null,"İşçi Prim Oranları",null,null,"İşveren Prim Oranları",null,null,null,null,"Genel Toplamlar"]
[null,null,"Aylar","Brüt Asgari Ücret (Günlük)","Brüt Asgari Ücret (Aylık)","Net Asgari Ücret (Günlük)","Net Asgari Ücret (Aylık)","SSK Prim Tabanı (Günlük)","SSK Prim Tabanı (Günlük)","SSK Prim Tavanı (Günlük)","SSK Prim Tavanı (Aylık)",null,"Damga Vergisi Oranları",null,"Herkes için Zorunlu BES oranı",null,null,null,null,"Kısa vadeli sigorta kolları","Malululük, yaşlılık ve ölüm","Genel Sağlık Sigortası","İşsizlik","İNDİRİMSİZ TOPLAM","SGK  İndirimi ","İNDİRİMLİ TOPLAM","Kısa vadeli sigorta kolları","Malululük, yaşlılık ve ölüm","Genel Sağlık Sigortası","İşsizlik","İNDİRİMSİZ TOPLAM","SGK 81 İndirimi (Hazine Tarafından Karşılanan)","İNDİRİMLİ TOPLAM (İMALAT SEKTÖRÜ HARİCİ)","SGK 81 İndirimi (Hazine Tarafından Karşılanan)","İNDİRİMLİ TOPLAM (İMALAT SEKTÖRÜ İÇİN)",null,null,"Kısa vadeli sigorta kolları","Sosyal Güvenlik Destekleme Primi","İŞÇİ TOPLAM ","Kısa vadeli sigorta kolları","Sosyal Güvenlik Destekleme Primi","İNDİRİMSİZ İŞVEREN PAYI TOPLAM","İndirim (Hazine Tarafından Karşılanan)","İNDİRİMLİ İŞVEREN PAYI TOPLAMI (TÜM SEKTÖRLER İÇİN)","İNDİRİMSİZ GENEL TOPLAM ORAN ","İNDİRİMLİ GENEL TOPLAM ORAN ",null,null,null,null,null,null,null,null,null,null,null,null,null,null,null,null,null,null,null,null,null,null,null,null,null,null,null,null,null,null,null,null,null,null,null,null,null,null,null,null,null,null,null,null,null,null,null,null,null,null,null,null,null,null,null,null,null,null,null,null,null,null,null,null,null,null,null,null,null,null,null,null,null,null,null,null,null,null,null,null,null,null,null,null,null,null,null,null,null,null,null,null,null,null,null,null,null,null,null,null,null,null,null,null,null,null,null,null,null,null,null,null,null,null,null,null,null,null,null,null,null,null,null,null,null,null,null,null,null,null,null,null,null,null,null,null,null,null,null,null,null,null,null,null,null,null,null,null,null,null,null,null,null,null,null,null,null,null,null,null,null,null,null,null,null,null,null,null,null,null,null,null,null,null,null,null,null,null,null,null,null,null,null,null,null,null,null,null,null,null,null,null,null,null,null,null,null,null,null,null,null,null,null,null,null,null,null,null,null,null,null,null,null,null,null,null,null,null,null,null,null,null,null,null,null,null,null,null,null,null,null,null,null,null,null,null,null,null,null,null,null,null,null,null,null,null,null,null,null,null,null,null,null,null,null,null,null,null,null,null,null,null,null,null,null,null,null,null,null,null,null,null,null,null,null,null,null,null,null,null,null,null,null,null,null,null,null,null,null,null,null,null,null,null,null,null,null,null,null,null,null,null,null,null,null,null,null,null,null,null,null,null,null,null,null,null,null,null,null,null,null,null,null,null,null,null,null,null,null,null,null,null,null,null,null,null,null,null,null,null,null,null,null,null,null,null,null,null,null,null,null,null,null,null,null,null,null,null,null,null,null,null,null,null,null,null,null,null,null,null,null,null,null,null,null,null,null,null,null,null,null,null,null,null,null,null,null,null,null,null,null,null,null,null,null,null,null,null,null,null,null,null,null,null,null,null,null,null,null,null,null,null,null,null,null,null,null,null,null,null,null,null,null,null,null,null,null,null,null,null,null,null,null,null,null,null,null,null,null,"brütden nete"]
[null,null,"Ocak",866.85,{"$f":"ROUND((D50*30),2)","v":26005.5},{"$f":"D50*0.85","v":736.82249999999999},{"$f":"(ROUND((F50*30),2))-0.01","v":22104.670000000002},{"$f":"D50","v":866.85},{"$f":"ROUND((H50*30),2)","v":26005.5},{"$f":"ROUND(H50*7.5,2)","v":6501.38},{"$f":"J50*30","v":195041.4},null,7.5900000000000004E-3,null,0.03,null,null,null,null,0,9,5,1,{"$f":"SUM(T50:W50)","v":15},0,{"$f":"SUM(X50:Y50)","v":15},2.25,11,7.5,2,{"$f":"SUM(AA50:AD50)","v":22.75},-5,{"$f":"SUM(AE50:AF50)","v":17.75},-5,{"$f":"AE50+AH50","v":17.75},null,null,0,7.5,{"$f":"SUM(AL50:AM50)","v":7.5},2.25,22.5,{"$f":"SUM(AO50:AP50)","v":24.75},0,{"$f":"AQ50+AR50","v":24.75},{"$f":"AN50+AQ50","v":32.25},{"$f":"AN50+AS50","v":32.25}]
[null,null,"Şubat",866.85,{"$f":"ROUND((D51*30),2)","v":26005.5},{"$f":"D51*0.85","v":736.82249999999999},22104.670000000002,{"$f":"D51","v":866.85},26005.5,{"$f":"ROUND(H51*7.5,2)","v":6501.38},195041.4,null,7.5900000000000004E-3,null,0.03,null,null,null,null,0,9,5,1,15,0,15,2.25,11,7.5,2,22.75,-4,{"$f":"SUM(AE51:AF51)","v":18.75},-5,17.75,null,null,0,7.5,{"$f":"SUM(AL51:AM51)","v":7.5},2.25,22.5,{"$f":"SUM(AO51:AP51)","v":24.75},0,{"$f":"AQ51+AR51","v":24.75},{"$f":"AN51+AQ51","v":32.25},{"$f":"AN51+AS51","v":32.25}]
[null,null,"Mart",866.85,26005.5,736.82249999999999,22104.670000000002,866.85,26005.5,6501.38,195041.4,null,7.5900000000000004E-3,null,0.03,null,null,null,null,0,9,5,1,15,0,15,2.25,11,7.5,2,22.75,-4,18.75,-5,17.75,null,null,0,7.5,7.5,2.25,22.5,24.75,0,24.75,32.25,32.25]
[null,null,"Nisan",866.85,26005.5,736.82249999999999,22104.670000000002,866.85,26005.5,6501.38,195041.4,null,7.5900000000000004E-3,null,0.03,null,null,null,null,0,9,5,1,15,0,15,2.25,11,7.5,2,22.75,-4,18.75,-5,17.75,null,null,0,7.5,7.5,2.25,22.5,24.75,0,24.75,32.25,32.25]
[null,null,"Mayıs",866.85,26005.5,736.82249999999999,22104.670000000002,866.85,26005.5,6501.38,195041.4,null,7.5900000000000004E-3,null,0.03,null,null,null,null,0,9,5,1,15,0,15,2.25,11,7.5,2,22.75,-4,18.75,-5,17.75,null,null,0,7.5,7.5,2.25,22.5,24.75,0,24.75,32.25,32.25]
[null,null,"Haziran",866.85,26005.5,736.82249999999999,22104.670000000002,866.85,26005.5,6501.38,195041.4,null,7.5900000000000004E-3,null,0.03,null,null,null,null,0,9,5,1,15,0,15,2.25,11,7.5,2,22.75,-4,18.75,-5,17.75,null,null,0,7.5,7.5,2.25,22.5,24.75,0,24.75,32.25,32.25]
[null,null,"Temmuz",866.85,26005.5,736.82249999999999,22104.670000000002,866.85,26005.5,6501.38,195041.4,null,7.5900000000000004E-3,null,0.03,null,null,null,null,0,9,5,1,15,0,15,2.25,11,7.5,2,22.75,-4,18.75,-5,17.75,null,null,0,7.5,7.5,2.25,22.5,24.75,0,24.75,32.25,32.25]
[null,null,"Ağustos",866.85,26005.5,736.82249999999999,22104.670000000002,866.85,26005.5,6501.38,195041.4,null,7.5900000000000004E-3,null,0.03,null,null,null,null,0,9,5,1,15,0,15,2.25,11,7.5,2,22.75,-4,18.75,-5,17.75,null,null,0,7.5,7.5,2.25,22.5,24.75,0,24.75,32.25,32.25]
[null,null,"Eylül",866.85,26005.5,736.82249999999999,22104.670000000002,866.85,26005.5,6501.38,195041.4,null,7.5900000000000004E-3,null,0.03,null,null,null,null,0,9,5,1,15,0,15,2.25,11,7.5,2,22.75,-4,18.75,-5,17.75,null,null,0,7.5,7.5,2.25,22.5,24.75,0,24.75,32.25,32.25]
[null,null,"Ekim",866.85,26005.5,736.82249999999999,22104.670000000002,866.85,26005.5,6501.38,195041.4,null,7.5900000000000004E-3,null,0.03,null,null,null,null,0,9,5,1,15,0,15,2.25,11,7.5,2,22.75,-4,18.75,-5,17.75,null,null,0,7.5,7.5,2.25,22.5,24.75,0,24.75,32.25,32.25]
[null,null,"Kasım",866.85,26005.5,736.82249999999999,22104.670000000002,866.85,26005.5,6501.38,195041.4,null,7.5900000000000004E-3,null,0.03,null,null,null,null,0,9,5,1,15,0,15,2.25,11,7.5,2,22.75,-4,18.75,-5,17.75,null,null,0,7.5,7.5,2.25,22.5,24.75,0,24.75,32.25,32.25]
[null,null,"Aralık",866.85,26005.5,736.82249999999999,22104.670000000002,866.85,26005.5,6501.38,195041.4,null,7.5900000000000004E-3,null,0.03,null,null,null,null,0,9,5,1,15,0,15,2.25,11,7.5,2,22.75,-4,18.75,-5,17.75,null,null,0,7.5,7.5,2.25,22.5,24.75,0,24.75,32.25,32.25]
[null,null,null,null,null,null,null,null,null,null,null,null,null,null,null,null,null,-5,null,null,null,null,null,{"$f":"(ROUND((W62*30),2))-0.01","v":-0.01},null,null,{"$f":"Y62*7.5","v":0},{"$f":"AA62*30","v":0},null,null,null,null,null,null,null,null,null,null,null,0,null,null,0]
[null,null,null,null,null,null,null,null,null,null,null,null,null,null,null,null,null,-5,null,null,null,null,null,-0.01,null,null,0,0,null,null,null,null,null,null,null,null,null,null,null,0,null,null,0]
[null,null,null,null,null,null,null,null,null,null,null,null,null,null,null,null,null,-5,null,null,null,null,null,-0.01,null,null,0,0,null,null,null,null,null,null,null,null,null,null,null,0,null,null,0]
[null,null,null,null,null,null,null,null,null,null,null,null,null,null,null,null,null,-5,null,null,null,null,null,-0.01,null,null,0,0,null,null,null,null,null,null,null,null,null,null,null,0,null,null,0]
[null,null,null,null,null,null,null,null,null,null,null,null,null,null,null,null,null,-5,null,null,null,null,null,-0.01,null,null,0,0,null,null,null,null,null,null,null,null,null,null,null,0,null,null,0]
[null,null,null,null,null,null,null,null,null,null,null,null,null,null,null,null,null,-5,null,null,null,null,null,-0.01,null,null,0,0,null,null,null,null,null,null,null,null,null,null,null,0,null,null,0]
[null,null,null,null,null,null,null,null,null,null,null,null,null,null,null,null,null,-5,null,null,null,null,null,-0.01,null,null,0,0,null,null,null,null,null,null,null,null,null,null,null,0,null,null,0]
[null,null,null,null,null,null,null,null,null,null,null,null,null,null,null,null,null,-5,null,null,null,null,null,-0.01,null,null,0,0,null,null,null,null,null,null,null,null,null,null,null,0,null,null,0]
[null,null,null,null,null,null,null,null,null,null,null,null,null,null,null,null,null,-5,null,null,null,null,null,-0.01,null,null,0,0,null,null,null,null,null,null,null,null,null,null,null,0,null,null,0]
[null,null,null,null,null,null,null,null,null,null,null,null,null,null,null,null,null,-5,null,null,null,null,null,-0.01,null,null,0,0,null,null,null,null,null,null,null,null,null,null,null,0,null,null,0]
[null,null,null,null,null,null,null,null,null,null,null,null,null,null,null,null,null,-5,null,null,null,null,null,-0.01,null,null,0,0,null,null,null,null,null,null,null,null,null,null,null,0,null,null,0]
[]
[]
[]
[null,null,"Sakatlık deceleri"]
[null,null,"Dereceler","İndirim Tutarı"]
[null,1,"Yok",0]
[null,2,"1.Derece Sakat",9900]
[null,3,"2.Derece Sakat",5700]
[null,4,"3.Derece Sakat",2400]